{"text_format":"1","workbook":"xlsx","n_sheets":3,"sheets":["Analisis","Manual de usuario","Tablero Interactivo"],"not_rendered":{"charts":11,"images":29,"macros":1,"external_links":0,"defined_names":2,"comments":0,"pivot_tables":2},"unopened":[],"bounds":{"document_bytes":16777216,"sheet_cells":100000,"rows_first":2000,"rows_last":500,"rows_between":2000,"halvings":0,"cell_chars":16384,"cell_head_chars":4096},"cells_cut":0,"cells_raw":0,"read":"whole","date_system":"1900"}

{"sheet":"Analisis","index":0,"n_rows":12,"n_cols":24,"rows_kept":12,"cut":false,"hidden":true,"merged":[]}
[]
[]
[null,"MUJERES","HOMBRES","ASPIRANTES","ACEPTADOS","MUJERES","HOMBRES","EGRESADOS","TITULADOS","LICENCIATURA","ESPECIALIDAD","MAESTRÍA","DOCTORADO","DOCENTES","ADMINISTRATIVOS","EGRESADOS","TITULADOS","INTRA-UNIVERSITARIO","PÚBLICO","PRODUCTIVO","COMUNITARIO","MUNICIPAL"]
[null,"Suma de Matrícula_Lic_Mujer","Suma de Matrícula_Lic_Hombre","Suma de Aspirantes_Lic","Suma de Aceptados_Lic","Suma de Matrícula_Pos_Mujer","Suma de Matrícula_Pos_Hombre","Suma de Egresados_Lic","Suma de Titulados_Lic","Suma de PTC_Lic","Suma de PTC_Esp","Suma de PTC_Mtr","Suma de PTC_Dr","Suma de PTC","Suma de Personal_Admin","Suma de Egresados_Pos","Suma de Titulados_Pos","Suma de Servicio_social_Intra-Universitario","Suma de Servicio_social_Público","Suma de Servicio_social_Productivo","Suma de Servicio_social_Comunitario","Suma de Servicio_social_Municipal","Suma de SNI","Suma de Prodep"]
[null,157297,166019,198820,131418,4472,4829,50662,45906,1386,221,4517,3867,9991,16466,3098,2419,20033,18248,7801,2631,3055,1489,4742]
[null,{"$f":"($B$5)","v":157297},{"$f":"($C$5)","v":166019},{"$f":"($D$5)","v":198820},{"$f":"($E$5)","v":131418},{"$f":"($F$5)","v":4472},{"$f":"($G$5)","v":4829},{"$f":"($H$5)","v":50662},{"$f":"($I$5)","v":45906},{"$f":"($J$5)","v":1386},{"$f":"($K$5)","v":221},{"$f":"($L$5)","v":4517},{"$f":"($M$5)","v":3867},{"$f":"($N$5)","v":9991},{"$f":"($O$5)","v":16466},{"$f":"($P$5)","v":3098},{"$f":"($Q$5)","v":2419},{"$f":"($R$5)","v":20033},{"$f":"($S$5)","v":18248},{"$f":"($T$5)","v":7801},{"$f":"($U$5)","v":2631},{"$f":"($V$5)","v":3055},{"$f":"($W$5)","v":1489},{"$f":"($X$5)","v":4742}]
[]
[]
[]
[]
[null,"Suma de Aspirantes_Lic","Suma de Aceptados_Lic"]
[null,198820,131418]

{"sheet":"Manual de usuario","index":1,"n_rows":0,"n_cols":0,"rows_kept":0,"cut":false,"hidden":false,"merged":[]}

{"sheet":"Tablero Interactivo","index":2,"n_rows":0,"n_cols":0,"rows_kept":0,"cut":false,"hidden":false,"merged":[]}